Cogmind - Beta 13 @@@ ROGUE MODE // 2024.04.17 @ 19:27:44 Player: AntinDisguise Result: Destroyed self with Mini Grenade Launcher Performance ------------- Evolutions (1) 500 Regions Visited (3) 600 Robots Destroyed (35) 175 Value Destroyed (615) 615 Prototype IDs (0) 0 Alien Tech Used (0) 0 Bonus (0) 0 TOTAL SCORE: 1890 Bonus ------- None Cogmind --------- Core Integrity 0/400 Matter 87/300 Energy 100/100 System Corruption 0% Temperature Cool (0) Movement Rolling (185) Ox7 Location -9/Mines Parts ------- > --- POWER (2) -------- (None) > --- PROPULSION (2) --- Wheel Wheel > --- UTILITY (3) ------ Cargo Storage Unit > --- WEAPON (2) ------- Mini Grenade Launcher > --- INVENTORY (30) --- Light Treads Light Treads Light Treads Improved Treads Improved Treads Improved Treads Improved Treads Huge Storage Unit Peak State ------------ > --- POWER ------------ Ion Engine Improved Ion Engine > --- PROPULSION ------- Wheel Compact Wheel > --- UTILITY ---------- Cargo Storage Unit Terrain Scanner > --- WEAPON ----------- Mini Grenade Launcher Mini Grenade Launcher > --- INVENTORY -------- Light Treads Light Treads Light Treads Improved Treads Improved Treads Improved Treads Improved Treads Wheel Wheel Wheel Heat Sink Huge Storage Unit Particle Gun Light Cannon [Rating: 13] Favorites ----------- Power Light Nuclear Core Engine Ion Engine Power Core Light Nuclear Core Propulsion Wheel Wheel Wheel Utility Cargo Storage Unit Device Terrain Scanner Storage Cargo Storage Unit Weapon Light Cannon Energy Gun Particle Gun Ballistic Gun Assault Rifle Ballistic Cannon Light Cannon Launcher Mini Grenade Launcher Build | -11 -10 -9 -9 ------- Run | Yrd Mat Mat Min Slots Evolved 2 | . . 2 . Power 1 | . . 1 . Propulsion . | . . . . Utility 1 | . . 1 . Weapon . | . . . . Parts Attached 27 | 6 9 11 1 Power 4 | 1 2 1 . Engine 3 | 1 1 1 . Core 1 | . 1 . . Reactor . | . . . . Propulsion 10 | 2 3 5 . Treads . | . . . . Leg . | . . . . Wheel 10 | 2 3 5 . Hover . | . . . . Flight . | . . . . Utility 4 | 1 1 1 1 Device 2 | . . 1 1 Storage 2 | 1 1 . . Processor . | . . . . Hackware . | . . . . Protection . | . . . . Artifact . | . . . . Weapon 9 | 2 3 4 . Energy Gun 4 | 1 2 1 . Energy Cannon . | . . . . Ballistic Gun 1 | 1 . . . Ballistic Cannon 2 | . 1 1 . Launcher 2 | . . 2 . Special Weapon . | . . . . Impact Weapon . | . . . . Slashing Weapon . | . . . . Piercing Weapon . | . . . . Special Melee Weapon . | . . . . Unidentified Prototypes . | . . . . Parts Lost 17 | . 7 8 2 Power 4 | . 2 2 . Propulsion 6 | . 3 3 . Utility 2 | . . 1 1 Weapon 5 | . 2 2 1 Highest Loss Streak 7 | . 5 7 2 To Critical Strikes . | . . . . Average Slot Usage (%) 69 | . 74 66 55 Engine 4 | . 3 9 . Core 5 | . 9 . . Wheel 21 | . 22 16 22 Device 4 | . . 10 11 Storage 12 | . 14 11 11 Energy Gun 7 | . 10 4 . Ballistic Gun 1 | . 2 . . Ballistic Cannon 7 | . 10 5 . Launcher 3 | . . 9 11 Naked Turns . | . . . . Heaviest Build 154 | 12 151 154 142 Greatest Support 26 | 20 20 26 20 Greatest Overweight (x) 51 | 1 49 51 7 Average Overweight (x) 6 | . 7 7 7 Largest Inventory Capacity 30 | 8 30 30 30 Average Capacity 28 | 7 29 30 30 Most Carried 15 | 4 12 15 8 Average Carried 6 | 1 5 11 8 Final Capacity 30 | 8 30 30 30 Final Carried 12 | 2 12 9 8 Class Distribution -------------------- 95% | Hauler-Mutant 4% | Mutant Dominant Class ---------------- Hauler-Mutant | -10/Materials Hauler-Mutant | -9/Materials Hauler-Mutant | -9/Mines Resources | -11 -10 -9 -9 ----------- Run | Yrd Mat Mat Min Matter Collected 587 | 260 236 69 22 Remotely . | . . . . Salvage Created 738 | . 511 139 88 Parts 61 | . 43 12 6 Haulers Intercepted 1 | . 1 . . Recyclers Shooed 1 | . 1 . . Parts Field Recycled . | . . . . Retrieved Matter . | . . . . Parts Self-Destructed . | . . . . Prevented . | . . . . Kills | -11 -10 -9 -9 ------- Run | Yrd Mat Mat Min Combat Hostiles Destroyed 19 | . 7 6 6 Guns 5 | . 5 . . Cannons 3 | . 2 1 . AOE 11 | . . 5 6 Classes Destroyed 10 | . 7 2 1 Worker 7 | . 6 1 . Builder 4 | . 2 2 . Tunneler 2 | . 1 1 . Hauler 1 | . 1 . . Recycler 3 | . 2 1 . Swarmer 6 | . 3 . 3 Grunt 10 | . 4 4 2 Duelist 1 | . . 1 . Sentry 1 | . . 1 . Assembled 1 | . . . 1 Best Kill Streak 9 | . 9 7 3 Combat Bots Only 3 | . 3 3 3 Max Kills in Single Turn 3 | . 1 3 3 Gunslinging . | . . . . Exploded 3 | . . 3 3 Melee . | . . . . Uniques/NPCs Destroyed . | . . . . Combat | -11 -10 -9 -9 -------- Run | Yrd Mat Mat Min Hostile Shots Fired 158 | . 72 79 7 Missed 42 | . 12 28 2 Damage Taken 1908 | . 736 959 213 Core 613 | . 203 323 87 Absorbed by Shields . | . . . . Core Remaining (%) 59 | 100 18 . . Volleys Fired 69 | . 50 15 4 Largest 2 | . 2 2 2 Hottest 100 | . 100 100 65 Shots Fired 118 | . 86 27 5 Gun 58 | . 52 6 . Cannon 39 | . 34 4 1 Launcher 21 | . . 17 4 Special . | . . . . Kinetic 55 | . 50 4 1 Thermal 36 | . 30 6 . Explosive 21 | . . 17 4 Electromagnetic 6 | . 6 . . Robot Hit Streak 8 | . 8 5 7 Robot Miss Streak 3 | . 3 2 1 Penetration Max . | . . . . Secondary Targets . | . . . . Shots Hit Robots 73 | . 53 18 2 Core Hits 55 | . 24 24 7 Critical Kills . | . . . . Critical Parts Destroyed 1 | . 1 . . Critical Strikes 5 | . 4 1 . Burn 3 | . 2 1 . Destroy 1 | . 1 . . Blast 1 | . 1 . . Melee Attacks . | . . . . Impact . | . . . . Slashing . | . . . . Piercing . | . . . . Sneak Attacks . | . . . . Combat Hostiles . | . . . . Follow-up Attacks . | . . . . Damage Inflicted 2056 | . 822 878 356 Guns 534 | . 488 46 . Cannons 407 | . 334 53 20 Explosions 1115 | . . 779 336 Melee . | . . . . Ramming . | . . . . Kinetic 559 | . 486 53 20 Thermal 357 | . 311 46 . Explosive 1115 | . . 779 336 Electromagnetic 25 | . 25 . . Impact . | . . . . Slashing . | . . . . Piercing . | . . . . Highest Corruption . | . . . . Average Corruption . | . . . . Corruption Purged . | . . . . Corruption Blocked . | . . . . Overload Shots . | . . . . Overflow Damage 47 | . . 18 29 Projectiles . | . . . . Explosions 47 | . . 18 29 Melee . | . . . . Knockbacks 2 | . 1 1 . Impact . | . . . . Kinetic 2 | . 1 1 . Secondary . | . . . . Self-Inflicted Damage 412 | . . 244 168 Shots 12 | . . 8 4 Rammed . | . . . . Targets Rammed . | . . . . Kicked . | . . . . Crushed . | . . . . Highest Temperature 156 | . 156 66 . Average Temperature 47 | . 52 25 . Received Heat Transfer 603 | . 360 219 24 Siege Activations . | . . . . Robots Corrupted . | . . . . Combat Hostiles . | . . . . Parts Fried . | . . . . Impact Corruptions . | . . . . Robots Melted . | . . . . Combat Hostiles . | . . . . Parts Melted 1 | . 1 . . Heat Transferred 1051 | . 866 185 . Parts Sabotaged . | . . . . Parts Stolen . | . . . . Parts Stripped . | . . . . Power Chain Reactions . | . . . . Alert | -11 -10 -9 -9 ------- Run | Yrd Mat Mat Min Peak Influence 250 | . 173 250 209 Initial 93 | . . 11 93 Average 79 | . 33 140 181 Maximum Alert Level 1 | . . 1 1 Low Security (%) 90 | 100 100 51 99 Level 1 9 | . . 48 . Level 2 . | . . . . Level 3 . | . . . . Level 4 . | . . . . Level 5 . | . . . . High Security . | . . . . Max Security . | . . . . Squads Dispatched 1 | . 1 . . Investigation 1 | . 1 . . Extermination . | . . . . Reinforcement . | . . . . Assault . | . . . . Garrison . | . . . . Intercept . | . . . . Searches Triggered . | . . . . Construction Impeded . | . . . . Haulers Reinforced . | . . . . Active Scanning Responses . | . . . . Cargo Convoy Interrupts . | . . . . Stealth | -11 -10 -9 -9 --------- Run | Yrd Mat Mat Min Distress Signals 1 | . . 1 . Communications Jammed . | . . . . Distress Signals . | . . . . Times Spotted 28 | . 9 12 7 Peak Tracking Total 7 | . 4 7 3 Tactical Retreats 1 | . . 1 . Traps | -11 -10 -9 -9 ------- Run | Yrd Mat Mat Min Traps Triggered 1 | . 1 . . Indirectly . | . . . . Trap Hack Attempts . | . . . . Triggered . | . . . . Disarmed . | . . . . Reprogrammed . | . . . . Reused . | . . . . Traps Extracted . | . . . . Installed . | . . . . Triggered . | . . . . Machines | -11 -10 -9 -9 ---------- Run | Yrd Mat Mat Min Machines Disabled 1 | . . 1 . Max in Single Turn 1 | . . 1 . Machines Repaired . | . . . . Machines Dismantled . | . . . . Machines Sabotaged . | . . . . Overloaded Fab Kills . | . . . . Hacking | -11 -10 -9 -9 --------- Run | Yrd Mat Mat Min Machines Accessed 5 | . 5 . . Terminals 4 | . 4 . . Fabricators . | . . . . Repair Stations . | . . . . Recycling Units 1 | . 1 . . Scanalyzers . | . . . . Garrison Access . | . . . . Total Hacks 9 | . 9 . . Successful 4 | . 4 . . Failed 5 | . 5 . . Catastrophic 1 | . 1 . . Database Lockouts . | . . . . Manual . | . . . . Terminals 8 | . 8 . . Fabricators . | . . . . Repair Stations . | . . . . Recycling Units 1 | . 1 . . Scanalyzers . | . . . . Garrison Access . | . . . . Terminal Hacks 3 | . 3 . . Locate Traps 1 | . 1 . . Zone Layout 2 | . 2 . . Fabricator Hacks . | . . . . Repair Station Hacks . | . . . . Recycling Unit Hacks 1 | . 1 . . Retrieve Components 1 | . 1 . . Scanalyzer . | . . . . Garrison Access Hacks . | . . . . Unauthorized Hacks . | . . . . Terminals . | . . . . Fabricators . | . . . . Repair Stations . | . . . . Recycling Units . | . . . . Scanalyzers . | . . . . Garrison Access . | . . . . Data Cores Recovered . | . . . . Used . | . . . . Hacking Detections 2 | . 2 . . Full Trace Events . | . . . . Feedback Events . | . . . . Feedback Blocked . | . . . . Robot Schematics Acquired . | . . . . Robots Built . | . . . . Authchips . | . . . . Time . | . . . . Total Robot Build Rating . | . . . . Part Schematics Acquired . | . . . . Parts Built . | . . . . Authchips . | . . . . Time . | . . . . Total Part Build Rating . | . . . . Parts Repaired . | . . . . Time . | . . . . Parts Recycled . | . . . . Recycled Matter . | . . . . Retrieved Matter . | . . . . Retrieved Components 9 | . 9 . . Parts Scanalyzed . | . . . . Part Schematics Acquired . | . . . . Parts Damaged . | . . . . Bothacking | -11 -10 -9 -9 ------------ Run | Yrd Mat Mat Min Used RIF Installer . | . . . . Robots Hacked . | . . . . Non-combat . | . . . . Combat . | . . . . Robot Hacks Applied . | . . . . Relay Couplers Released . | . . . . Fabnet Peak Effective % . | . . . . Robots Rewired . | . . . . Allies Hacked . | . . . . Hacks Repelled . | . . . . Allies | -11 -10 -9 -9 -------- Run | Yrd Mat Mat Min Total Allies 3 | . . . 3 Largest Group 3 | . . . 3 Highest-Rated Group 40 | . . . 40 Highest-Rated Ally 16 | . . . 16 Total Orders . | . . . . Ally Attacks . | . . . . Total Damage . | . . . . Kills . | . . . . Allies Corrupted . | . . . . Allies Melted . | . . . . Intel | -11 -10 -9 -9 ------- Run | Yrd Mat Mat Min Robot Analysis Total . | . . . . Derelict Logs Recovered . | . . . . Drone Launches . | . . . . Drone Recoveries . | . . . . Exploration | -11 -10 -9 -9 ------------- Run | Yrd Mat Mat Min Turns Passed 1472 | 46 880 285 261 Spaces Moved 565 | 37 326 92 110 Core 14 | 7 5 2 . Treads . | . . . . Legs . | . . . . Wheels 551 | 30 321 90 110 Hover . | . . . . Flight . | . . . . Fastest Speed 50 | 50 80 165 185 Average Speed 201 | 81 212 233 185 Slowest Speed 2600 | 100 2500 2600 185 Overloaded Moves . | . . . . Propulsion Burnouts . | . . . . Robots Hopped . | . . . . Cave-ins Triggered . | . . . . Exploration Rate (%) 25 | 3 54 18 26 Regions Visited 3 Branch Regions 1 Pre-discovered Areas . | . . . . Known Exits Taken . | . . . . Unknown Exits Taken 3 | 1 1 1 . Scrap Searched . | . . . . Spaces Dug 11 | . . . 11 Terrain Destroyed 135 | . . 93 42 Melee . | . . . . Projectile . | . . . . AOE 135 | . . 93 42 Terrain Rammed . | . . . . Walls Destroyed . | . . . . Machines Disabled . | . . . . Actions | -11 -10 -9 -9 --------- Run | Yrd Mat Mat Min Total 779 | 52 429 134 164 Wait 84 | 2 24 9 49 Move 562 | 36 325 91 110 Hop . | . . . . Pick Up 33 | 8 19 6 . Fast Attach . | . . . . Attach 24 | 6 9 8 1 Detach . | . . . . Swap 3 | . . 3 . Drop 4 | . 2 2 . Fire 69 | . 50 15 4 Melee . | . . . . Ram . | . . . . Kick . | . . . . Crush . | . . . . Escape Stasis . | . . . . Rewire . | . . . . Trap . | . . . . Miscellaneous . | . . . . Route ------- -11/Scrapyard -10/Materials (discovered 2 exits: [*Mat] / [*Min]) -9/Materials -9/Mines History --------- Turn | Location | Event 15 | -11/Scrapyard | Discovered new exit (range 16) 47 | -11/Scrapyard | Entered Materials 242 | -10/Materials | Core integrity fell below 50% 243 | -10/Materials | Lost 5 parts (1p2n2w) 399 | -10/Materials | Build established: Hauler-Mutant 490 | -10/Materials | Discovered new exit (range 9) 836 | -10/Materials | Core integrity fell below 20% 882 | -10/Materials | Discovered new exit (range 16) 927 | -10/Materials | Entered another Materials area 927 | -9/Materials | Evolved 2 slots: Power x1, Utility x1 1132 | -9/Materials | Core integrity fell below 50% 1151 | -9/Materials | Core integrity fell below 20% 1176 | -9/Materials | Lost 7 parts (2p3n2w) 1201 | -9/Materials | Discovered new exit (range 7) 1212 | -9/Materials | Entered Mines 1257 | -9/Mines | Assisted by bots powering up and referring to "LRC-V3" 1330 | -9/Mines | Excavation squad dispatched 1330 | -9/Mines | A large section of the Mines collapsed 1473 | -9/Mines | Destroyed self with Mini Grenade Launcher Last Messages --------------- T-07 Excavator system corrupted by crushing effect. T-07 Excavator knocked back. T-07 Excavator system terminally corrupted. U-05 Engineer lays Concrete. as-18132 sneak attacks. U-05 Engineer system corrupted by crushing effect. U-05 Engineer system terminally corrupted. as-18132 sneak attacks. U-05 Engineer system corrupted by crushing effect. U-05 Engineer knocked back. U-05 Engineer system corrupted by crushing effect. U-05 Engineer system terminally corrupted. as-18132 destroyed. The unstable cave ceiling collapses. G-34 Mercenary destroyed. Heat Sink destroyed. Destroyed Heat Sink. G-47 Trooper destroyed. Map ----- +----------------------------------------------------+ | ?????????????????????????????????????????????????? | | ?????????????????????????????????????????????????? | | ?????????????????????????????????????????????????? | | ?????????????????????????????????????????????????? | | ?????????????????????????????????????????????????? | | ?????????????????????????????????????????????????? | | ?????????????????????????????????????????????????? | | ?????????????????????????????????????????????????? | | ?????????????????????????????????????????????????? | | ?????????????????????????????????????????????????? | | ?????????????????????????????????????????????????? | | ?????????????????????????????????????????????????? | | ?????????????????????????????????????????????????? | | ?????????????????????????????????????????????????? | | ?????????????????????????????????????????????????? | | ????????????????????????????#????????????????????? | | ??????????????????????????? #???????? ???????????? | | ??????????????????????????? #?????? ???????????? | | ??????????????????????????? #????? ????????????? | | ??????????????????????????# ##### ?????????????? | | ?????????????????????????? g ???????????????? | | ?????????????????????????? #????????????????? | | ????????????????????????## * #????????????????? | | ####????????????????##### %% # ## #?????????? | | # ###??????????????# == #????????? | | # ################## @ #????????? | | ## #????????? | | ### # #????????? | | ####################??# ????????? | | ####?????????????????????? ????????? | | ###???????????????????????? ????????? | | #?????????????????????????? ?????????? | | #??????????????????????????? ?????????? | | ???????????????????????????# ??????????? | | ????????????????????????????# ??????????? | | ????????????????????????????? ???????????? | | #???????????????????????????? ?????????????? | | #????????????????????????????? ??????????????? | | ###??????????????????????????????????????????????? | | ?????????????????????????????????????????????????? | | ?????????????????????????????????????????????????? | | ?????????????????????????????????????????????????? | | | | | | | | | | | | | | | | | +----------------------------------------------------+ Best States ------------- Heat Dissipation 38 Energy Generation 17 Energy Capacity 415 Matter Stores 300 Matter Capacity 300 Sight Range 16 Terrain Scan Range 14 Terrain Scan Density 10 Evasion (%) 44 Item Schematics ----------------- None Robot Schematics ------------------ None Fabricated ------------ Nothing Alien Tech Used ----------------- None Achievements -------------- None Challenges ------------ None Game ------ Seed RecyclingMultinovaMediator Manual? 0 Play Time 00:11:21 Cumulative 20.8 hours Start 2024.04.17 @ 19:16:51 End 2024.04.17 @ 19:27:44 Sessions 1 Manual Loads 0 Difficulty Rogue Special Mode None Game No. 51 Rogue 49 Adventurer 2 Explorer 0 Win Type - Total 0 Types 0/0/0/0/0/0/0/0/0 Lore% 20 Gallery% 28 Achievement% 20 Wizard Run 0 Options --------- Layout 1 ASCII 0 Keyboard 0 Movement Mouse Keybinds 0 Fullscreen 1 Font 16/SmallcapsGlow Map View 27x19 Zoom Use 99% Tactical HUD 0 Map Filters NONE Filters NONE Steam 1 RUN: b281563d-6121-44a7-abc8-84e5139448fb